bitfinex/quotes_ETHUSD_20240821
["timestamp","ask_amount","ask_price","bid_price","bid_amount"]
[1724214347522,2.3186,2598.8,2598.4,0.55]
[1724214348323,0.03584312,2598.7,2598.4,0.55]
[1724214348528,2.3186,2598.8,2598.4,0.55]
[1724214348751,0.03584312,2598.6,2598.4,0.55]
[1724214348999,0.03584312,2598.6,2598.1,4.0819]
[1724214349000,3.9896,2598.8,2598.2,0.55]
[1724214349228,0.03584312,2598.5,2598.2,1.072077]
[1724214349566,3.9896,2598.8,2598.2,1.072077]
[1724214350075,0.03584312,2598.7,2598.3,3.9986]
[1724214350366,0.03584312,2598.7,2598.6,2.3276]
[1724214350573,2.3967,2599.3,2598.6,2.8776]
[1724214350724,2.3967,2599.3,2598.7,0.07695271]
[1724214350926,0.03589362,2599.2,2598.8,0.55]
[1724214351166,2.3967,2599.3,2598.8,0.55]
[1724214351664,0.03589362,2599.2,2598.8,0.55]
[1724214351839,5.3967,2599.3,2598.8,0.55]
[1724214352169,0.03589362,2599.1,2598.8,1.01255527]
[1724214352369,3.0,2599.3,2598.8,1.01255527]
[1724214352575,0.03589362,2599.0,2598.9,2.3276]
[1724214352801,3.0,2599.3,2598.9,4.5486]
[1724214352948,0.03589362,2599.0,2598.9,4.5486]
[1724214353295,0.03589362,2599.0,2598.9,5.04971553]
[1724214353454,3.0,2599.3,2598.9,0.55]
[1724214353653,0.03589362,2599.0,2598.8,0.55]
[1724214353973,3.0,2599.3,2598.8,0.55]
[1724214354165,0.03589362,2598.9,2598.8,0.55]
[1724214354346,3.0,2599.3,2598.8,1.00486]
[1724214354541,0.03589362,2598.9,2598.8,1.00486]
[1724214354786,3.0,2599.3,2598.8,1.00486]
[1724214354951,0.03589362,2598.9,2598.8,1.00486]
[1724214355147,3.0,2599.3,2598.8,1.00486]
[1724214355347,0.03589362,2598.9,2598.8,1.00486]
[1724214355578,3.0,2599.3,2598.8,1.00486]
[1724214355784,0.03589362,2598.9,2598.8,1.00486]
[1724214355982,3.0,2599.3,2598.8,1.00486]
[1724214356447,0.03639847,2599.2,2598.8,1.00486]
[1724214356654,3.0,2599.3,2598.8,1.00486]
[1724214356853,0.03639847,2599.1,2598.8,1.00486]
[1724214357078,3.0,2599.3,2598.9,0.500346]
[1724214357399,3.0,2599.3,2599.0,0.55]
[1724214357747,3.0,2599.3,2598.8,0.55]
[1724214358682,3.0,2599.3,2598.9,1.671]
[1724214358861,3.0,2599.3,2599.0,0.7721]
[1724214360155,2.3967,2599.5,2599.0,0.7721]
[1724214361204,2.3967,2599.5,2599.0,0.55]
[1724214361574,2.3967,2599.5,2598.8,0.55]
[1724214363967,4.0677,2599.5,2598.8,0.55]
[1724214364167,3.0,2599.4,2598.8,0.55]
[1724214365201,0.03698408,2599.3,2598.8,0.55]
[1724214365371,0.03698408,2599.3,2598.9,0.45486]
[1724214365702,0.03698408,2599.3,2599.0,0.55]
[1724214367707,0.03692351,2599.2,2599.0,0.55]
[1724214367862,2.3967,2599.5,2599.0,0.55]
[1724214368258,0.03692351,2599.4,2599.0,2.9592]
[1724214369060,0.03692351,2599.4,2599.0,3.300606]
[1724214371017,0.03692351,2599.4,2599.0,0.891406]
[1724214371258,3.03692351,2599.4,2599.0,0.55]
[1724214371571,0.03692351,2599.4,2599.0,0.55]
[1724214375814,0.03692351,2599.4,2598.9,0.55]
[1724214378288,3.0,2599.6,2598.9,0.55]
[1724214378487,0.03701438,2599.3,2599.0,0.45257]
[1724214378691,3.0,2599.6,2599.1,0.55]
[1724214378927,0.03701438,2599.2,2599.1,0.55]
[1724214379236,3.0,2599.6,2599.1,0.55]
[1724214379430,0.03701438,2599.2,2599.1,0.55]
[1724214379729,0.03701438,2599.2,2598.9,0.55]
[1724214379929,3.0,2599.6,2598.9,0.55]
[1724214380087,0.03701438,2599.1,2598.9,0.55]
[1724214380287,3.0,2599.6,2598.9,0.55]
[1724214380532,3.0,2599.6,2599.0,0.45257]
[1724214380740,3.0,2599.6,2599.1,0.55]
[1724214384458,2.3956,2599.5,2599.1,0.55]
[1724214384750,2.3956,2599.5,2598.9,0.55]
[1724214388460,4.0666,2599.5,2598.9,0.55]
[1724214388756,2.2667,2599.2,2598.9,0.55]
[1724214390167,2.3457,2599.0,2598.5,7.41]
[1724214390465,2.3457,2598.7,2598.5,7.41]
[1724214390626,2.3457,2598.5,2597.9,9.081]
[1724214390827,2.3457,2598.5,2597.9,7.41]
[1724214391029,0.03718596,2598.4,2598.0,0.96621]
[1724214391756,2.3457,2598.5,2598.0,0.96621]
[1724214392056,2.3457,2598.5,2598.1,0.55]
[1724214392217,0.03686288,2598.4,2598.1,0.55]
[1724214392654,0.03686288,2598.4,2598.0,0.96621]
[1724214393848,0.03686288,2598.4,2598.1,0.55]
[1724214395310,2.3457,2598.5,2598.1,0.55]
[1724214395514,0.03686288,2598.3,2598.1,0.55]
[1724214395762,2.3457,2598.5,2598.1,0.55]
[1724214395965,0.03686288,2598.2,2598.1,0.55]
[1724214396122,2.3457,2598.5,2598.0,0.55]
[1724214397267,0.03603498,2598.4,2598.0,0.55]
[1724214397467,2.3457,2598.5,2598.0,0.55]
[1724214398020,0.03603498,2598.4,2598.0,0.55]
[1724214398250,2.3457,2598.5,2598.0,1.5131]
[1724214398451,0.03603498,2598.4,2598.0,1.5131]
[1724214398722,2.3457,2598.5,2598.0,1.5131]
[1724214399536,0.03603498,2598.4,2598.0,1.5131]
[1724214399870,2.3457,2598.5,2598.0,1.5131]
[1724214400167,0.03603498,2598.3,2598.0,1.5131]
[1724214400318,2.3457,2598.5,2598.0,1.5131]
[1724214400519,0.03603498,2598.2,2598.0,1.5131]
[1724214400816,2.3457,2598.5,2598.1,1.05941]
[1724214401020,0.03571182,2598.4,2598.2,0.55]
[1724214408551,0.03571182,2598.4,2598.0,0.55]
[1724214411781,0.03571182,2598.4,2598.1,1.671]
[1724214411978,0.03571182,2598.4,2598.2,1.01783]
[1724214412285,2.3655,2599.0,2598.4,2.4573]
[1724214412589,2.3655,2599.0,2598.5,2.221]
[1724214412760,2.3655,2599.0,2598.5,0.55]
[1724214416256,2.3655,2599.0,2598.5,2.221]
[1724214417493,2.3655,2599.0,2598.5,0.55]
[1724214417650,2.3655,2599.0,2598.6,0.30073]
[1724214417849,2.3655,2599.0,2598.7,0.55]
[1724214420246,0.03557042,2598.9,2598.7,0.55]
[1724214420457,2.3655,2599.0,2598.7,0.55]
[1724214420675,0.03557042,2598.9,2598.7,0.55]
[1724214420853,2.3655,2599.0,2598.7,0.55]
[1724214421087,0.03557042,2598.9,2598.7,0.55]
[1724214421282,2.3655,2599.0,2598.7,0.55]
[1724214422261,0.03557042,2598.9,2598.7,0.55]
[1724214422463,2.3655,2599.0,2598.7,0.55]
[1724214423577,0.03602486,2598.9,2598.7,0.55]
[1724214424758,2.4351,2598.8,2598.7,0.55]
[1724214425406,2.47112486,2598.8,2598.7,0.55]
[1724214426417,2.88533735,2598.8,2598.7,0.55]
[1724214435335,2.47112486,2598.8,2598.7,0.55]
[1724214437555,2.47112486,2598.8,2597.7,7.41]
[1724214437556,2.4449,2598.7,2597.7,7.41]
[1724214437859,2.4449,2598.2,2597.7,7.7959]
[1724214438205,2.4449,2598.2,2597.8,1.00461]
[1724214438555,0.03588352,2598.1,2597.8,1.00461]
[1724214438915,0.03588352,2598.1,2597.9,0.55]
[1724214439117,0.03588352,2598.1,2597.8,0.55]
[1724214441458,0.03588352,2598.1,2597.7,0.3859]
[1724214442221,1.70688352,2598.1,2597.7,0.3859]
[1724214442462,1.70688352,2598.1,2597.5,0.3859]
[1724214442772,1.70688352,2598.1,2597.5,1.55883]
[1724214443072,2.3393,2598.0,2597.6,0.55]
[1724214443360,0.03540878,2597.9,2597.6,0.55]
[1724214443560,0.03540878,2597.9,2597.5,0.55]
[1724214446353,0.03540878,2597.9,2597.6,0.3859]
[1724214446580,0.03540878,2597.9,2597.7,0.9359]
[1724214446787,0.03540878,2597.9,2597.7,0.3859]
[1724214446938,0.03540878,2597.9,2597.8,0.55]
[1724214448985,0.03540878,2597.9,2597.7,0.3859]
[1724214449201,2.3393,2598.0,2597.8,0.55]
[1724214450283,2.3393,2598.0,2597.7,0.3859]
[1724214450584,2.3393,2598.0,2597.8,0.55]
[1724214451384,2.3393,2598.0,2597.7,0.3859]
[1724214451559,2.3393,2598.0,2597.8,0.55]
[1724214451934,0.07703148,2597.9,2597.8,0.55]
[1724214452482,0.07703148,2597.9,2597.7,0.3859]
[1724214452676,0.07703148,2597.9,2597.8,0.55]
[1724214453452,0.07703148,2597.9,2597.7,0.3859]
[1724214453678,0.07703148,2597.9,2597.8,0.55]
[1724214454006,0.11158158,2597.9,2597.8,0.55]
[1724214454743,0.11158158,2597.9,2597.7,0.3859]
[1724214454993,0.07703148,2597.9,2597.8,0.55]
[1724214456103,0.07703148,2597.9,2597.7,0.3859]
[1724214456253,0.07703148,2597.9,2597.8,0.55]
[1724214457079,0.07703148,2597.9,2597.7,0.3859]
[1724214457407,0.07703148,2597.9,2597.8,0.55]
[1724214458208,2.2978,2597.8,2597.7,0.3859]
[1724214458420,2.2978,2597.7,2597.0,7.41]
[1724214458561,1.671,2597.6,2597.0,7.41]
[1724214459907,1.671,2597.6,2597.1,0.55]
[1724214461275,1.74803148,2597.6,2597.1,0.55]
[1724214464108,1.671,2597.6,2597.1,1.62783]
[1724214464278,3.0,2598.2,2597.2,2.4878]
[1724214464279,1.671,2597.8,2597.2,2.4878]
[1724214464478,4.671,2597.8,2597.3,0.55]
[1724214464660,0.03439853,2597.7,2597.3,0.55]
[1724214465056,4.671,2597.8,2597.3,0.55]
[1724214465299,0.03439853,2597.6,2597.3,0.55]
[1724214465514,4.671,2597.8,2597.3,0.55]
[1724214465699,0.03439853,2597.5,2597.3,0.55]
[1724214466029,4.671,2597.8,2597.3,0.55]
[1724214466303,0.03439853,2597.4,2597.3,0.55]
[1724214466503,4.671,2597.8,2597.3,0.55]
[1724214466717,0.03439853,2597.4,2597.3,0.55]
[1724214466915,4.671,2597.8,2597.3,0.55]
[1724214467069,0.03439853,2597.4,2597.3,0.55]
[1724214467625,4.671,2597.8,2597.3,0.55]
[1724214467783,0.03439853,2597.4,2597.3,0.55]
[1724214468113,4.671,2597.8,2597.3,0.55]
[1724214468319,0.03439853,2597.4,2597.3,0.55]
[1724214468614,4.671,2597.8,2597.3,0.55]
[1724214468934,0.03439853,2597.4,2597.3,0.55]
[1724214469083,4.671,2597.8,2597.3,0.85378]
[1724214469278,0.03439853,2597.7,2597.3,0.55]
[1724214469618,4.671,2597.8,2597.3,0.55]
[1724214469801,0.03439853,2597.6,2597.3,0.55]
[1724214470326,4.671,2597.8,2597.3,0.55]
[1724214470813,0.03439853,2597.7,2597.3,0.55]
[1724214470987,4.671,2597.8,2597.3,0.55]
[1724214471172,0.03439853,2597.6,2597.3,0.55]
[1724214471371,4.671,2597.8,2597.3,0.55]
[1724214471607,0.03439853,2597.5,2597.3,0.55]
[1724214471816,4.671,2597.8,2597.3,0.55]
[1724214471982,0.03439853,2597.4,2597.3,0.55]
[1724214472186,4.671,2597.8,2597.3,0.55]
[1724214472527,0.03439853,2597.4,2597.3,0.55]
[1724214472814,4.671,2597.8,2597.3,0.55]
[1724214472980,0.03439853,2597.4,2597.3,0.55]
[1724214473191,4.671,2597.8,2597.3,0.55]
[1724214473369,0.03439853,2597.4,2597.3,0.55]
[1724214473574,5.37399,2597.8,2597.3,0.55]
[1724214473575,7.79899,2597.8,2597.3,0.55]
[1724214473814,0.03404477,2597.4,2597.2,2.3728]
[1724214474021,7.79899,2597.8,2597.0,4.0438]
[1724214474223,7.79899,2597.8,2597.1,0.55]
[1724214474224,0.03404477,2597.3,2597.1,0.55]
[1724214474374,0.779899,2597.7,2597.1,0.55]
[1724214474574,0.03404477,2597.2,2597.1,0.55]
[1724214474822,7.096,2597.8,2597.1,0.55]
[1724214475119,0.03404477,2597.2,2597.1,0.55]
[1724214475779,2.3941,2597.6,2597.1,0.55]
[1724214475983,0.03404477,2597.2,2597.1,0.55]
[1724214476176,2.3941,2597.6,2597.1,0.55]
[1724214476378,0.03404477,2597.2,2597.1,0.55]
[1724214476673,2.3941,2597.6,2597.1,1.00938]
[1724214476958,0.03404477,2597.2,2597.1,1.00938]
[1724214477097,2.3941,2597.6,2597.1,1.00938]
[1724214477311,0.03404477,2597.5,2597.1,1.00938]
[1724214493843,4.671,2597.8,2597.1,1.00938]
[1724214494047,0.03403467,2597.7,2597.1,1.00938]
[1724214495866,0.03403467,2597.7,2597.1,0.55]
[1724214496639,2.3532,2597.6,2597.1,0.55]
[1724214497083,0.03403467,2597.5,2597.1,0.55]
[1724214506766,9.9815319,2597.8,2597.1,0.55]
[1724214506961,0.0340549,2597.4,2597.1,0.55]
[1724214507306,0.0340549,2597.3,2597.1,0.84228]
[1724214507764,9.9815319,2597.8,2597.1,0.84228]
[1724214507966,0.0340549,2597.2,2597.1,0.55]
[1724214508168,9.9815319,2597.8,2597.1,0.55]
[1724214508412,0.0340549,2597.2,2597.1,0.55]
[1724214508607,9.9815319,2597.8,2597.1,0.55]
[1724214508781,0.03413577,2597.2,2597.1,0.55]
[1724214508978,0.03413577,2597.2,2597.1,0.84228]
[1724214509499,9.9815319,2597.8,2597.1,0.84228]
[1724214509701,0.03413577,2597.2,2597.1,0.55]
[1724214509902,9.9815319,2597.8,2597.1,0.55]
[1724214510126,0.03413577,2597.2,2597.1,0.55]
[1724214510413,9.9815319,2597.8,2597.1,0.55]
[1724214510564,0.03413577,2597.2,2597.1,0.55]
[1724214510906,0.03413577,2597.2,2597.1,0.84228]
[1724214511115,9.98161596,2597.8,2597.1,0.84228]
[1724214511284,0.03413577,2597.2,2597.1,0.55]
[1724214511600,9.98161596,2597.8,2597.1,0.55]
[1724214511811,0.03413577,2597.2,2597.1,0.55]
[1724214512295,9.98161596,2597.8,2597.1,0.55]
[1724214512493,0.03413577,2597.2,2597.1,0.55]
[1724214512706,11.314652,2597.8,2597.1,0.55]
[1724214512865,0.03413577,2597.2,2597.1,0.55]
[1724214513066,11.314652,2597.8,2597.1,0.55]
[1724214513370,0.03413577,2597.7,2597.1,0.55]
[1724214514288,1.16901455,2597.7,2597.1,0.55]
[1724214516501,4.08096199,2597.7,2597.1,0.55]
[1724214516685,1.24604603,2597.7,2597.1,0.55]
[1724214517085,4.08096199,2597.7,2597.1,0.55]
[1724214517286,1.24604603,2597.7,2597.1,0.55]
[1724214517485,2.7937662,2597.6,2597.1,0.55]
[1724214517704,2.2886,2597.5,2597.1,0.55]
[1724214517920,2.32273577,2597.5,2597.1,0.55]
[1724214518772,2.2886,2597.5,2597.1,0.55]
[1724214521586,0.07703148,2597.4,2597.1,0.55]
[1724214521778,2.43526,2597.4,2597.1,0.55]
[1724214523126,2.43526,2597.4,2596.9,0.55]
[1724214524440,4.0127,2597.2,2596.9,0.55]
[1724214524614,4.0127,2597.2,2596.7,7.41]
[1724214524615,4.08973148,2597.2,2596.8,0.55]
[1724214524780,4.85099286,2597.2,2596.8,0.55]
[1724214526080,4.85099286,2597.2,2596.7,0.55]
[1724214526271,4.85099286,2597.2,2596.3,7.41]
[1724214526272,1.671,2596.8,2596.3,2.4718]
[1724214526476,1.671,2596.7,2596.3,2.4718]
[1724214528877,2.2642,2596.8,2596.3,2.4718]
[1724214529126,2.06452,2596.7,2596.3,2.4718]
[1724214530986,3.0,2596.8,2596.3,2.4718]
[1724214531193,6.21386138,2597.2,2596.4,2.3198]
[1724214531404,6.21386138,2597.2,2596.5,0.55]
[1724214531405,7.88486138,2597.2,2596.5,0.55]
[1724214531996,1.671,2597.0,2596.5,0.55]
[1724214537252,3.0,2597.2,2596.6,2.2713]
[1724214537440,4.671,2597.3,2596.7,0.55]
[1724214537645,2.82749225,2597.7,2596.7,0.55]
[1724214537646,1.671,2597.5,2596.8,2.2713]
[1724214537965,2.4656,2597.6,2597.0,2.2713]
[1724214538112,1.671,2597.5,2597.0,2.2713]
[1724214539015,4.671,2597.5,2597.0,2.2713]
[1724214540164,3.0,2597.5,2597.0,2.2713]
[1724214540364,1.671,2597.3,2597.1,0.55]
[1724214540582,0.3,2597.4,2596.9,0.55]
[1724214540583,1.671,2597.1,2596.9,0.55]
[1724214541234,1.671,2597.1,2596.3,7.41]
[1724214541563,1.671,2597.1,2596.4,3.4077]
[1724214541769,1.671,2597.1,2596.5,2.4996]
[1724214542771,1.671,2597.1,2596.6,0.55]
[1724214543633,3.3,2597.4,2596.6,0.55]
[1724214543918,1.671,2597.2,2596.6,0.55]
[1724214545326,1.671,2596.8,2596.6,0.55]
[1724214545527,1.671,2597.0,2596.6,0.55]
[1724214553286,1.671,2597.3,2596.7,2.2918]
[1724214553585,1.671,2597.3,2596.8,0.55]
[1724214554296,2.38229,2597.3,2596.8,0.55]
[1724214554442,5.38229,2597.3,2596.8,0.55]
[1724214557317,4.671,2597.3,2596.8,0.55]
[1724214557465,1.671,2597.3,2596.8,0.55]
[1724214557666,3.0,2597.2,2596.8,0.55]
[1724214557867,1.671,2597.3,2596.8,0.55]
[1724214563793,1.671,2597.3,2596.8,0.5417]
[1724214563999,0.4671,2597.2,2596.8,0.5417]
[1724214570624,1.671,2597.1,2596.8,0.5417]
[1724214571395,3.9457,2597.1,2596.8,0.5417]
[1724214571608,1.671,2597.1,2596.6,0.55]
[1724214572319,3.9457,2596.9,2596.2,2.4667]
[1724214572527,1.671,2596.7,2596.2,2.4667]
[1724214573528,1.74803148,2596.7,2596.2,2.4667]
[1724214573823,1.671,2596.7,2596.2,2.4667]
[1724214574024,1.671,2596.7,2596.3,0.55]
[1724214576017,1.671,2596.5,2596.3,0.55]
[1724214576221,1.671,2596.5,2596.1,7.41]
[1724214576222,0.40049,2596.4,2596.2,0.55]
[1724214576427,1.671,2596.5,2596.2,0.55]
[1724214577509,1.671,2596.5,2596.1,0.55]
[1724214577914,2.3339,2596.6,2596.1,0.55]
[1724214578219,3.04209315,2596.6,2596.1,0.55]
[1724214580914,0.70819315,2596.6,2596.1,0.55]
[1724214581227,1.671,2596.7,2596.1,0.55]
[1724214581423,1.74803148,2596.7,2596.1,0.55]
[1724214581625,1.671,2596.7,2596.1,0.55]
[1724214581832,1.74803148,2596.7,2596.1,0.55]
[1724214593351,1.671,2596.7,2596.1,0.55]
[1724214593651,0.69839,2596.6,2596.1,0.55]
[1724214596455,1.671,2596.7,2596.1,0.55]
[1724214600555,3.0,2596.8,2596.2,2.3773]
[1724214600854,1.671,2596.9,2596.3,0.55]
[1724214601025,0.7021,2596.8,2596.3,0.55]
[1724214601857,1.671,2596.7,2596.3,0.55]
[1724214602857,4.671,2596.9,2596.3,0.55]
[1724214603036,4.671,2596.9,2596.4,2.4391]
[1724214603241,4.671,2596.9,2596.5,0.55]
[1724214603558,0.7021,2596.8,2596.5,0.55]
[1724214605461,4.671,2596.9,2596.5,0.55]
[1724214605660,10.10081729,2597.3,2596.6,2.3122]
[1724214605820,8.941,2597.3,2596.8,2.3122]
[1724214606160,10.11818173,2597.3,2596.9,0.55]
[1724214606978,2.84818173,2597.3,2596.9,0.55]
[1724214607136,1.671,2597.3,2596.9,0.55]
[1724214607549,1.671,2597.1,2596.9,0.55]
[1724214608284,1.671,2597.1,2596.7,0.55]
[1724214608517,1.671,2596.9,2596.7,0.55]
[1724214610888,1.671,2597.1,2596.8,2.3333]
[1724214611093,1.671,2597.1,2596.9,0.55]
[1724214611287,2.1381,2597.1,2596.7,0.55]
[1724214612573,1.671,2596.9,2596.7,0.55]
[1724214613413,1.671,2596.9,2596.5,0.55]
[1724214616150,1.671,2596.9,2596.6,2.3422]
[1724214616332,1.671,2596.9,2596.7,0.55]
[1724214617013,5.1381,2597.1,2596.7,0.55]
[1724214617218,2.1381,2597.1,2596.7,0.55]
[1724214618237,0.51381,2597.0,2596.7,0.55]
[1724214618417,3.51381,2597.0,2596.7,0.55]
[1724214621073,3.0,2597.0,2596.8,2.4321]
[1724214621287,2.1381,2597.1,2596.9,0.55]
[1724214622876,2.1381,2597.1,2596.7,0.55]
[1724214623527,1.671,2596.9,2596.7,0.55]
[1724214624352,1.671,2596.9,2596.1,9.081]
[1724214624353,1.671,2596.9,2596.3,2.4321]
[1724214625929,1.671,2596.9,2596.4,0.55]
[1724214626958,1.74803148,2596.9,2596.4,0.55]
[1724214627858,1.671,2596.9,2596.4,0.55]
[1724214630796,1.671,2596.9,2596.5,2.2572]
[1724214630994,1.671,2596.9,2596.6,0.55]
[1724214631360,2.41592,2596.9,2596.6,0.55]
[1724214637270,1.671,2596.9,2596.6,0.55]
[1724214638093,2.1381,2597.1,2596.6,0.55]
[1724214638418,3.0,2597.2,2596.6,0.55]
[1724214638419,3.0,2597.2,2596.7,2.4438]
[1724214638715,4.671,2597.3,2596.9,2.4872]
[1724214638910,1.671,2597.3,2597.0,0.55]
[1724214639111,0.4671,2597.2,2597.0,0.55]
[1724214640309,1.671,2597.3,2597.0,0.55]
[1724214641516,1.671,2597.1,2597.0,0.55]
[1724214642820,2.3848,2597.0,2596.4,2.3318]
[1724214642980,1.671,2596.9,2596.4,2.3318]
[1724214644021,1.671,2596.9,2596.5,0.55]
[1724214644323,2.35983048,2596.9,2596.5,0.55]
[1724214646303,1.671,2596.9,2596.5,0.55]
[1724214654799,8.24820491,2597.2,2596.6,2.3267]
[1724214655031,3.0,2597.2,2596.7,0.55]
[1724214655531,1.671,2597.1,2596.7,0.55]
[1724214658245,4.83646749,2597.1,2596.7,0.55]
[1724214658388,0.07703148,2597.0,2596.7,0.55]
[1724214658583,0.07703148,2597.0,2596.5,0.55]
[1724214659642,1.671,2596.9,2596.5,0.55]
[1724214659799,1.74803148,2596.9,2596.5,0.55]
[1724214661238,1.671,2596.9,2596.5,0.55]
[1724214662935,1.671,2597.1,2596.6,2.2516]
[1724214663142,1.671,2597.1,2596.7,0.55]
[1724214667126,3.0,2597.2,2596.7,0.55]
[1724214667340,3.9288,2597.3,2596.7,0.55]
[1724214667542,3.0,2597.2,2596.7,0.858927]
[1724214671369,1.671,2597.1,2596.7,0.55]
[1724214674988,1.671,2596.9,2596.7,0.55]
[1724214675682,4.071,2596.9,2596.7,0.55]
[1724214675821,4.071,2596.9,2596.8,0.55]
[1724214676028,4.071,2596.9,2596.5,0.55]
[1724214676259,2.4,2596.8,2596.5,0.55]
[1724214676457,1.671,2596.7,2596.4,7.41]
[1724214677625,1.671,2596.7,2596.5,0.55]
[1724214678572,1.671,2596.7,2596.4,0.55]
[1724214682154,1.671,2596.9,2596.4,0.55]
[1724214682366,2.4576,2597.0,2596.4,0.83763]
[1724214682671,4.671,2597.1,2596.5,2.4471]
[1724214682838,1.671,2597.1,2596.6,0.55]
[1724214687385,1.671,2596.9,2596.6,0.55]
[1724214687611,1.671,2596.9,2596.4,0.55]
[1724214687787,0.07703148,2596.8,2596.4,0.55]
[1724214688091,1.671,2596.9,2596.4,0.55]
[1724214689388,2.2872,2597.2,2596.5,2.2969]
[1724214689586,2.2872,2597.2,2596.6,0.55]
[1724214689587,1.671,2597.1,2596.6,0.55]
[1724214689865,4.671,2597.1,2596.6,0.55]
[1724214702654,2.83231777,2597.3,2596.7,2.4606]
[1724214702800,1.671,2597.2,2596.8,0.55]
[1724214703404,1.671,2597.0,2596.8,0.55]
[1724214709506,1.671,2597.0,2596.6,0.55]
[1724214711413,1.671,2596.8,2596.6,0.55]
[1724214711970,1.671,2596.8,2596.5,0.55]
[1724214713203,2.53453148,2596.9,2596.5,0.55]
[1724214713413,1.74803148,2596.9,2596.5,1.57642]
[1724214714325,1.74803148,2596.9,2596.5,0.55]
[1724214716213,1.671,2596.9,2596.6,2.2672]
[1724214716414,1.671,2596.9,2596.7,0.55]
[1724214723201,3.0,2597.0,2596.7,0.55]
[1724214723421,4.671,2597.0,2596.7,0.55]
[1724214724145,1.671,2597.0,2596.7,0.55]
[1724214725095,1.671,2597.0,2596.7,0.83172]
[1724214725299,2.83374944,2597.3,2596.8,2.4715]
[1724214725499,1.671,2597.4,2596.9,0.55]
[1724214730168,1.671,2597.4,2597.0,2.4746]
[1724214730354,3.0,2597.5,2597.1,3.0246]
[1724214730669,3.0,2597.5,2597.1,3.32706]
[1724214730817,4.671,2597.6,2597.1,3.32706]
[1724214731874,1.671,2597.6,2597.1,3.32706]
[1724214732041,4.671,2597.6,2597.1,3.32706]
[1724214732724,1.671,2597.6,2597.1,3.32706]
[1724214732923,1.671,2597.6,2597.2,0.332706]
[1724214733131,1.671,2597.6,2597.3,0.55]
[1724214733770,1.671,2597.6,2597.2,0.55]
[1724214735576,1.671,2597.4,2597.2,0.55]
[1724214739873,1.671,2597.4,2597.0,0.55]
[1724214742731,5.3534,2597.8,2597.1,2.3318]
[1724214742893,1.671,2597.5,2597.2,0.55]
[1724214745135,1.671,2597.7,2597.2,0.55]
[1724214745311,3.0,2597.9,2597.3,2.3183]
[1724214745489,1.671,2597.8,2597.4,0.55]
[1724214745892,1.671,2597.6,2597.4,0.55]
[1724214746723,3.0,2597.9,2597.4,0.55]
[1724214746911,1.671,2597.7,2597.4,0.55]
[1724214748896,1.671,2597.5,2597.4,0.55]
[1724214749339,1.671,2597.5,2597.2,0.55]
[1724214749712,1.671,2597.3,2597.2,0.55]
[1724214749912,1.671,2597.3,2596.9,2.3518]
[1724214749913,1.671,2597.3,2597.0,0.55]
[1724214750114,1.671,2597.5,2597.0,0.55]
[1724214751243,1.671,2597.5,2597.0,1.58118]
[1724214752413,2.4783,2597.7,2597.1,2.268]
[1724214752723,2.4783,2597.7,2597.0,1.58118]
[1724214752724,3.0,2597.9,2597.3,2.268]
[1724214752940,1.671,2597.8,2597.4,0.55]
[1724214754409,1.671,2597.8,2597.4,0.8318]
[1724214754812,4.671,2597.9,2597.5,2.296]
[1724214755014,3.0,2597.8,2597.5,2.296]
[1724214755256,1.671,2597.9,2597.6,0.55]
[1724214761170,1.671,2597.7,2597.6,0.55]
[1724214769552,1.671,2597.7,2597.4,0.55]
[1724214769752,1.671,2597.5,2597.1,9.8253]
[1724214770738,1.671,2597.5,2597.1,2.4153]
[1724214771836,1.671,2597.5,2597.2,0.55]
[1724214782482,3.0,2597.7,2597.2,0.55]
[1724214782841,4.671,2597.8,2597.2,0.55]
[1724214783037,7.50433164,2597.8,2597.3,0.29653]
[1724214783351,4.671,2597.8,2597.4,0.55]
[1724214788385,4.671,2597.8,2597.4,2.8526]
[1724214793734,4.671,2597.8,2597.4,0.55]
[1724214793943,4.671,2597.8,2597.5,0.55]
[1724214794261,4.671,2597.8,2597.3,0.55]
[1724214794852,4.671,2597.8,2597.3,1.59468]
[1724214799502,4.671,2597.8,2597.3,0.55]
[1724214799702,1.671,2597.4,2597.1,7.41]
[1724214800060,2.2896,2597.3,2597.1,7.41]
[1724214800354,2.2896,2597.3,2596.8,2.3088]
[1724214800591,2.2896,2597.3,2596.9,0.97188]
[1724214800982,2.2896,2597.3,2597.0,0.55]
[1724214802298,1.671,2597.4,2597.0,0.55]
[1724214816281,1.671,2597.4,2597.0,0.54906378]
[1724214816865,1.671,2597.4,2596.8,2.3088]
[1724214817062,1.671,2597.4,2596.8,2.86900153]